bitfinex/quotes_ETHUSD_20240823
["timestamp","ask_amount","ask_price","bid_price","bid_amount"]
[1724387916485,2.783385,2643.1,2642.8,3.78384]
[1724387916685,6.2462652,2643.1,2642.7,3.784]
[1724387916898,2.38580203,2642.8,2642.7,3.784]
[1724387917101,2.38580203,2642.8,2642.7,4.84738823]
[1724387917712,2.38589251,2642.8,2642.7,4.84738823]
[1724387919181,2.38598208,2642.8,2642.7,4.84738823]
[1724387920409,2.38598208,2642.8,2642.7,4.88369373]
[1724387922528,2.78364576,2643.0,2642.7,0.0363055]
[1724387922696,6.56729576,2643.0,2642.5,6.03812]
[1724387922899,2.38641075,2642.7,2642.6,0.03631543]
[1724387923833,2.38655351,2642.7,2642.6,0.03631543]
[1724387923981,2.3865178,2642.7,2642.6,0.03631543]
[1724387924383,2.3865178,2642.7,2642.6,3.82046543]
[1724387926300,2.3865178,2642.7,2642.6,4.80632397]
[1724387928717,2.38666218,2642.7,2642.6,4.80632397]
[1724387929584,2.38666218,2642.8,2642.7,3.784]
[1724387930037,2.38666218,2642.8,2642.7,3.8203055]
[1724387930218,2.78443921,2643.0,2642.7,3.8203055]
[1724387930386,2.38662592,2642.8,2642.7,3.8203055]
[1724387933434,2.38662592,2642.8,2642.7,7.07514105]
[1724387933673,2.3865866,2642.8,2642.7,3.8203055]
[1724387936444,2.3865866,2642.8,2642.7,0.0363055]
[1724387936766,2.78435103,2642.9,2642.7,0.0363055]
[1724387937666,2.78435103,2642.8,2642.7,0.0363055]
[1724387938368,2.78452745,2642.8,2642.7,0.0363055]
[1724387938952,2.78452745,2642.9,2642.7,0.0363055]
[1724387941685,2.78409378,2642.9,2642.7,0.0363055]
[1724387946180,3.91117398,2643.0,2642.7,0.0363055]
[1724387946590,2.78409378,2642.9,2642.7,0.0363055]
[1724387951173,2.78329326,2642.9,2642.7,0.0363055]
[1724387952824,6.16307346,2643.0,2642.7,0.0363055]
[1724387953381,1.1270802,2642.8,2642.7,0.0363055]
[1724387953581,3.91037346,2642.8,2642.4,3.78434]
[1724387953780,2.38560771,2642.5,2642.4,7.5687]
[1724387955619,2.38560771,2642.6,2642.4,7.5687]
[1724387955937,2.38560771,2642.5,2642.4,3.78434]
[1724387956086,2.38560771,2642.6,2642.4,3.78434]
[1724387956422,2.38560771,2642.6,2642.5,6.17329]
[1724387957325,2.78329326,2642.9,2642.5,6.17329]
[1724387957326,2.38560771,2642.7,2642.5,6.17329]
[1724387958537,2.38560771,2642.6,2642.5,3.78429]
[1724387959790,2.38560771,2642.6,2642.4,3.78441]
[1724387960789,2.38504561,2642.6,2642.4,3.78441]
[1724387965337,2.38504561,2642.6,2642.5,0.03650728]
[1724387965539,2.38514542,2642.6,2642.5,0.03650728]
[1724387970372,2.38515165,2642.6,2642.5,0.03650728]
[1724387970533,2.38515165,2642.6,2642.5,4.45054401]
[1724387970856,2.38515165,2642.7,2642.5,4.45054401]
[1724387971061,2.38515165,2642.7,2642.5,3.82079728]
[1724387971647,2.38515165,2642.7,2642.5,0.03650728]
[1724387972370,2.38515165,2642.7,2642.5,3.82076728]
[1724387972538,2.38515165,2642.6,2642.5,3.82076728]
[1724387972944,2.38515165,2642.7,2642.5,3.82076728]
[1724387973148,2.38522082,2642.6,2642.5,3.82076728]
[1724387973546,2.38522082,2642.7,2642.5,3.82076728]
[1724387973930,2.38522082,2642.6,2642.5,3.82076728]
[1724387974695,2.38522082,2642.6,2642.5,0.03650728]
[1724387975236,2.38529434,2642.6,2642.5,0.03650728]
[1724387979957,2.3859952,2642.6,2642.5,0.03650728]
[1724387981393,2.2767,2642.7,2642.5,0.03650728]
[1724387981599,2.38634188,2642.6,2642.5,0.03650728]
[1724387981892,2.2767,2642.7,2642.5,0.03650728]
[1724387989041,2.25793796,2642.7,2642.5,0.03650728]
[1724387989442,7.69541346,2642.8,2642.5,0.03650728]
[1724387989677,2.38669401,2642.6,2642.5,0.03650728]
[1724387994581,2.38681883,2642.6,2642.5,0.03650728]
[1724387995291,3.91170217,2642.8,2642.5,0.03650728]
[1724387995453,2.3868487,2642.6,2642.5,0.03650728]
[1724387995657,3.91170217,2642.8,2642.5,0.03650728]
[1724387995958,2.38689503,2642.6,2642.5,0.03650728]
[1724387996287,2.38689889,2642.6,2642.5,0.03650728]
[1724387996577,3.91170217,2642.8,2642.5,0.03650728]
[1724387999250,3.91192138,2642.8,2642.5,0.03650728]
[1724388002553,3.91224286,2642.8,2642.5,0.03650728]
[1724388005995,2.78516266,2642.8,2642.5,0.03650728]
[1724388006171,2.38724405,2642.6,2642.5,2.99275001]
[1724388006712,2.38724405,2642.6,2642.5,6.77702001]
[1724388007273,4.9106702,2643.0,2642.5,6.77702001]
[1724388007603,2.38720312,2642.6,2642.5,6.15957728]
[1724388007806,2.7850703,2642.8,2642.5,6.15957728]
[1724388007973,2.38721623,2642.6,2642.5,6.15957728]
[1724388009281,2.7850703,2642.8,2642.5,6.15957728]
[1724388009597,2.38720055,2642.6,2642.5,6.15957728]
[1724388012099,2.387166,2642.6,2642.5,6.15957728]
[1724388013097,2.387166,2642.6,2642.5,2.37530728]
[1724388013399,2.785027,2642.8,2642.5,2.37530728]
[1724388013594,2.38718323,2642.6,2642.5,2.37530728]
[1724388013801,2.785027,2642.8,2642.5,0.03650728]
[1724388016483,2.38715706,2642.6,2642.5,0.03650728]
[1724388016884,2.38715501,2642.6,2642.5,3.82079728]
[1724388017081,2.38715501,2642.7,2642.6,3.78415]
[1724388017324,2.38715501,2642.7,2642.5,2.16386121]
[1724388017325,2.38715501,2642.9,2642.8,3.78386]
[1724388017679,2.38715501,2642.9,2642.8,3.82046926]
[1724388017918,2.38715501,2642.9,2642.8,4.82771619]
[1724388020187,2.38715501,2642.9,2642.8,0.03660926]
[1724388020389,3.91209438,2643.1,2642.8,0.03660926]
[1724388020591,6.38109438,2643.1,2642.7,3.784]
[1724388020923,2.38555634,2642.8,2642.7,3.784]
[1724388021608,2.38542172,2642.8,2642.7,3.784]
[1724388021804,2.38542172,2642.8,2642.7,4.64084537]
[1724388023622,2.38542172,2642.9,2642.7,4.64084537]
[1724388025329,2.38542172,2642.9,2642.8,0.03649633]
[1724388025696,2.38542172,2642.9,2642.7,4.64084537]
[1724388026032,2.38542172,2642.9,2642.8,0.03649633]
[1724388026206,2.38542172,2642.9,2642.7,4.64084537]
[1724388026499,2.38488044,2642.9,2642.8,0.03649633]
[1724388026913,2.38488044,2642.9,2642.7,4.64084537]
[1724388027137,2.38488044,2642.9,2642.8,0.03649633]
[1724388027591,2.38488044,2642.9,2642.7,4.64084537]
[1724388027725,2.38488044,2642.9,2642.8,0.03649633]
[1724388028133,2.38488044,2642.9,2642.7,4.64084537]
[1724388028334,2.38488044,2642.9,2642.8,0.03649633]
[1724388028695,2.38488044,2642.9,2642.7,4.64084537]
[1724388028900,2.38488044,2642.9,2642.8,0.03649633]
[1724388029300,2.38488044,2642.9,2642.7,0.85684537]
[1724388029519,10.16195072,2643.1,2642.8,0.03649633]
[1724388029926,2.38470149,2642.9,2642.6,3.78413]
[1724388030124,2.38472423,2642.8,2642.7,0.85685837]
[1724388031136,2.3847438,2642.8,2642.7,0.85685837]
[1724388033440,2.38471302,2642.8,2642.7,0.85685837]
[1724388035747,2.38471302,2642.9,2642.7,0.85685837]
[1724388035947,2.38470458,2642.9,2642.6,6.11893]
[1724388037554,2.38470458,2642.9,2642.5,1.00027373]
[1724388037555,2.38470458,2642.7,2642.5,1.00027373]
[1724388040331,2.38470458,2642.7,2642.6,0.11456158]
[1724388040749,2.3849243,2642.7,2642.6,0.11456158]
[1724388049984,2.3849243,2642.8,2642.7,2.3171]
[1724388050397,2.38510733,2642.8,2642.7,2.43173022]
[1724388051559,2.38510733,2642.8,2642.7,6.21573022]
[1724388051892,2.38510733,2642.8,2642.7,7.32587379]
[1724388052441,2.38510733,2642.8,2642.7,3.54187379]
[1724388053405,2.78262522,2643.0,2642.7,3.54187379]
[1724388053541,2.78262522,2643.0,2642.7,0.11463022]
[1724388053970,2.38522797,2642.8,2642.7,0.11463022]
[1724388054314,2.78262522,2643.0,2642.7,0.11463022]
[1724388054607,2.38527416,2642.8,2642.7,0.11463022]
[1724388054810,2.78262522,2643.0,2642.7,0.11463022]
[1724388055112,2.78284227,2643.0,2642.7,0.11463022]
[1724388056007,7.69351247,2643.0,2642.7,0.11463022]
[1724388056516,7.69351247,2643.0,2642.5,3.78427]
[1724388056655,2.38536866,2642.7,2642.5,3.78427]
[1724388056855,2.38536866,2642.7,2642.5,8.570484]
[1724388057055,2.38536866,2642.7,2642.5,4.786214]
[1724388058405,2.38536866,2642.6,2642.3,6.23557]
[1724388058874,2.38536866,2642.5,2642.3,3.78447]
[1724388059873,2.38553082,2642.5,2642.3,7.56897]
[1724388060113,2.38553082,2642.5,2642.3,3.78447]
[1724388060319,2.38553082,2642.5,2642.4,0.605307]
[1724388060498,2.38553082,2642.6,2642.4,0.605307]
[1724388060821,2.38553082,2642.5,2642.4,0.605307]
[1724388062626,2.38553082,2642.6,2642.4,0.605307]
[1724388063208,2.38523046,2642.6,2642.4,0.605307]
[1724388065119,2.38523046,2642.6,2642.4,4.389727]
[1724388066620,2.38523046,2642.6,2642.4,0.605307]
[1724388068029,2.38499075,2642.6,2642.4,0.605307]
[1724388070308,2.38499075,2642.6,2642.5,0.11463725]
[1724388070834,2.38499075,2642.6,2642.3,3.78447]
[1724388071040,2.384917,2642.5,2642.3,5.504253]
[1724388071391,2.384917,2642.6,2642.3,5.504253]
[1724388071607,2.384917,2642.5,2642.3,5.504253]
[1724388071804,2.384917,2642.6,2642.3,5.504253]
[1724388072017,2.384917,2642.6,2642.4,0.7772853]
[1724388072836,2.38485697,2642.6,2642.4,0.7772853]
[1724388073292,2.38485697,2642.5,2642.4,0.7772853]
[1724388073931,2.38485697,2642.6,2642.4,0.7772853]
[1724388076557,2.38485697,2642.5,2642.4,0.7772853]
[1724388077559,2.38489778,2642.6,2642.4,0.7772853]
[1724388077715,2.38489778,2642.6,2642.3,3.78447]
[1724388078036,2.38489778,2642.5,2642.3,3.78447]
[1724388080316,2.38489778,2642.5,2642.1,11.14472]
[1724388080574,1.98749887,2642.2,2642.1,11.14472]
[1724388080717,1.98749887,2642.2,2642.1,13.86257002]
[1724388081864,1.98749887,2642.2,2642.1,6.50257002]
[1724388082018,1.98749887,2642.2,2642.1,3.78472]
[1724388085144,1.98749887,2642.2,2642.1,3.89558342]
[1724388086293,1.98749887,2642.2,2642.1,0.11086342]
[1724388086950,6.1693404,2642.4,2642.1,0.11086342]
[1724388090154,1.1270802,2642.2,2642.1,0.11086342]
[1724388090359,7.88196366,2642.2,2642.1,0.11086342]
[1724388090554,3.78491,2642.1,2641.6,11.14557]
[1724388090889,1.98688182,2641.8,2641.6,3.78557]
[1724388091196,1.98688182,2641.7,2641.6,3.78557]
[1724388091491,1.58896699,2641.7,2641.6,3.78557]
[1724388091858,1.58896699,2641.7,2641.6,6.026989]
[1724388094367,1.58896699,2641.8,2641.6,6.026989]
[1724388095069,1.58896699,2641.7,2641.6,6.026989]
[1724388095269,1.58896699,2641.8,2641.6,6.026989]
[1724388096871,1.58896699,2641.8,2641.6,3.78557]
[1724388097497,1.58896699,2641.8,2641.5,6.17862]
[1724388097699,1.58896699,2641.8,2641.5,3.78572]
[1724388098413,1.58896699,2641.7,2641.5,3.78572]
[1724388098571,1.58896699,2641.7,2641.4,3.78586]
[1724388098776,1.58896699,2641.7,2641.4,5.63104302]
[1724388100504,1.58896699,2641.7,2641.5,0.10778247]
[1724388101009,1.58896699,2641.7,2641.3,13.53889]
[1724388101171,1.58896699,2641.7,2641.6,0.10783858]
[1724388101372,1.58896699,2641.7,2641.3,13.53883]
[1724388101610,1.58896699,2641.7,2641.4,0.10786447]
[1724388102203,1.58896699,2641.6,2641.4,0.10786447]
[1724388103110,1.58896699,2641.5,2641.4,0.10786447]
[1724388103304,1.58896699,2641.6,2641.4,0.10786447]
[1724388108299,1.58896699,2641.7,2641.4,0.10786447]
[1724388108606,1.58896699,2641.6,2641.4,0.10786447]
[1724388109133,10.9548202,2641.5,2641.4,0.10786447]
[1724388109332,9.15117054,2641.5,2641.4,0.10786447]
[1724388109521,9.15117054,2641.5,2640.9,3.78658]
[1724388109522,3.78587,2641.4,2640.9,3.78647]
[1724388109698,1.58467857,2641.3,2640.9,3.78647]
[1724388110098,1.58467857,2641.3,2641.0,3.78643]
[1724388110297,1.58467857,2641.3,2641.1,3.78628]
[1724388110493,1.58467857,2641.3,2641.2,3.78615]
[1724388110729,1.58467857,2641.5,2641.3,3.78601]
[1724388111239,1.58467857,2641.5,2641.4,0.10462376]
[1724388111642,1.58467857,2641.5,2641.2,3.78615]
[1724388111934,1.58467857,2641.5,2641.3,0.10463671]
[1724388112135,1.58467857,2641.5,2641.2,3.78615]
[1724388112341,1.58467857,2641.5,2641.3,0.10463671]
[1724388112639,1.58467857,2641.5,2641.2,3.78615]
[1724388112931,1.58467857,2641.5,2641.4,0.10462376]
[1724388113105,1.58467857,2641.5,2641.3,0.10463671]
[1724388113306,1.58467857,2641.5,2641.4,0.10462376]
[1724388113516,1.58467857,2641.5,2641.1,3.78628]
[1724388113735,1.58467857,2641.5,2641.2,0.10464965]
[1724388117696,5.37040857,2641.5,2641.2,0.10464965]
[1724388118612,5.37040857,2641.5,2641.0,2.383]
[1724388118809,9.15620857,2641.5,2641.1,0.1049703]
[1724388119049,1.58467857,2641.4,2641.1,0.1049703]
[1724388119215,7.86397857,2641.4,2641.1,0.1049703]
[1724388119414,3.78603,2641.3,2641.1,0.1049703]
[1724388119618,3.78603,2641.3,2640.9,3.78648]
[1724388119937,5.37070857,2641.3,2640.8,6.26732]
[1724388120239,5.37070857,2641.3,2640.9,0.1049962]
[1724388121148,3.78621,2641.2,2640.9,0.1049962]
[1724388121302,3.78621,2641.2,2640.7,3.78677]
[1724388121726,3.78621,2641.2,2640.8,0.10500914]
[1724388121959,3.78621,2641.2,2640.7,3.78677]
[1724388122125,3.78621,2641.2,2640.8,0.10500914]
[1724388122466,2.3586,2641.1,2640.7,3.78677]
[1724388122763,2.3586,2641.1,2640.8,0.10500914]
[1724388122929,5.37088857,2641.2,2640.7,3.78677]
[1724388123130,5.37088857,2641.2,2640.8,0.10548013]
[1724388123579,3.78636,2641.1,2640.6,6.05687]
[1724388123729,3.78636,2641.1,2640.7,0.10549308]
[1724388125767,1.58467857,2641.1,2640.7,3.89235308]
[1724388127488,5.37101857,2641.1,2640.7,3.89235308]
[1724388127689,6.83286764,2641.1,2640.7,0.10549308]
[1724388127928,1.58467857,2641.0,2640.7,0.10549308]
[1724388128095,1.58467857,2641.0,2640.5,3.78702]
[1724388128295,4.07527857,2641.0,2640.8,0.10577533]
[1724388128503,4.07527857,2641.0,2640.6,3.78699]
[1724388128645,4.07527857,2641.0,2640.9,0.10576238]
[1724388128848,4.07527857,2641.0,2640.6,3.78699]
[1724388129372,4.07527857,2641.0,2640.7,0.10581341]
[1724388133252,4.07527857,2641.0,2640.7,3.89267341]
[1724388133441,1.58467857,2641.1,2640.7,3.89267341]
[1724388133642,1.58467857,2641.0,2640.7,3.89267341]
[1724388134058,1.58467857,2641.0,2640.7,0.10581341]
[1724388135106,1.58467857,2641.0,2640.7,3.89267341]
[1724388135447,1.58467857,2641.0,2640.7,0.10581341]
[1724388135884,1.58467857,2640.9,2640.7,0.10581341]
[1724388140266,4.04677857,2640.9,2640.7,0.10581341]
[1724388141303,1.58467857,2640.8,2640.7,0.10581341]
[1724388141457,4.04677857,2640.9,2640.7,0.10581341]
[1724388141959,1.58467857,2640.8,2640.7,0.10581341]
[1724388143894,1.58467857,2640.8,2640.5,3.78702]
[1724388144169,1.58508962,2640.7,2640.6,0.10587036]
[1724388145560,1.98095573,2640.7,2640.4,3.78729]
[1724388145760,1.58526592,2640.5,2640.3,3.78743]
[1724388148520,1.98154535,2640.6,2640.2,6.07295]
[1724388148521,1.58526592,2640.6,2640.4,3.7872]
[1724388148806,1.58526592,2640.6,2640.4,7.57443]
[1724388149010,1.58526592,2640.6,2640.4,3.7872]
[1724388150301,1.58526592,2640.5,2640.4,7.57448]
[1724388150624,1.58526592,2640.7,2640.6,3.78701]
[1724388151917,1.9821724,2640.8,2640.6,3.78701]
[1724388152207,1.9821724,2640.7,2640.5,6.04316]
[1724388152372,1.58572661,2640.6,2640.5,6.04316]
[1724388154222,1.9821724,2640.7,2640.5,3.89345799]
[1724388155209,1.9821724,2640.6,2640.5,0.10629799]
[1724388155408,1.9821724,2640.6,2640.3,3.78737]
[1724388155626,1.9821724,2640.6,2640.1,6.13614]
[1724388155627,1.58621801,2640.4,2640.2,3.78758]
[1724388156911,1.58621801,2640.5,2640.2,3.78758]
[1724388157333,1.58621801,2640.4,2640.2,3.78758]
[1724388160731,1.58621801,2640.4,2640.3,3.78744]
[1724388161654,1.98410557,2640.5,2640.3,3.78744]
[1724388161857,1.98410557,2640.5,2640.3,3.89257664]
[1724388162254,1.98410557,2640.4,2640.3,3.89257664]
[1724388164688,1.98410557,2640.5,2640.3,3.89257664]
[1724388166392,1.98410557,2640.5,2640.4,3.7873]
[1724388166554,1.98410557,2640.5,2640.4,3.89155406]
[1724388166954,1.98410557,2640.5,2640.4,6.26635406]
[1724388167893,1.58817121,2640.5,2640.4,11.18073426]
[1724388168397,1.58817121,2640.6,2640.5,9.88102]
[1724388168598,1.58817121,2640.6,2640.5,9.98528624]
[1724388170497,1.58817121,2640.6,2640.5,11.47525288]
[1724388179660,1.98410557,2640.7,2640.5,9.16855288]
[1724388179869,1.98410557,2640.7,2640.6,3.78701]
[1724388180030,6.2689,2641.1,2640.6,3.78701]
[1724388180341,2.38395874,2640.9,2640.6,3.78701]
[1724388181649,1.98671324,2640.7,2640.6,3.78701]
[1724388182258,2.38395874,2640.9,2640.6,3.78701]
[1724388182471,1.98675639,2640.7,2640.6,3.78701]
[1724388182831,2.38395874,2640.9,2640.6,3.78701]
[1724388183144,1.98692341,2640.7,2640.6,3.78701]
[1724388183658,2.38434864,2640.9,2640.6,3.78701]
[1724388184057,1.98700113,2640.7,2640.6,3.78701]
[1724388184871,2.38434864,2640.9,2640.6,3.78701]
[1724388186135,2.38434864,2640.9,2640.5,3.78716]
[1724388186331,1.98713709,2640.6,2640.5,3.78716]
[1724388188238,1.98761836,2640.6,2640.5,3.78709]
[1724388188466,2.38514203,2640.8,2640.5,3.78709]
[1724388188641,1.98760619,2640.6,2640.5,3.78709]
[1724388189455,1.98755325,2640.6,2640.5,3.78709]
[1724388190375,1.98755325,2640.6,2640.5,3.89107347]
[1724388191687,2.38514203,2640.8,2640.5,3.89107347]
[1724388191985,1.98758655,2640.6,2640.5,3.89107347]
[1724388192185,2.38514203,2640.8,2640.5,3.89107347]
[1724388192380,1.98753593,2640.6,2640.5,3.89107347]
[1724388192683,2.38514203,2640.8,2640.5,3.89107347]
[1724388192904,1.98756349,2640.6,2640.5,3.89107347]
[1724388193127,1.98761456,2640.6,2640.5,3.89107347]
[1724388193872,2.38513747,2640.8,2640.5,3.89107347]
[1724388194069,1.98766028,2640.6,2640.5,3.89107347]
[1724388194985,2.38513747,2640.8,2640.5,3.89107347]
[1724388195161,1.98765175,2640.6,2640.5,3.89107347]
[1724388195360,1.98766107,2640.6,2640.5,3.89107347]
[1724388196317,2.38513747,2640.8,2640.5,3.89107347]
[1724388196617,1.98766714,2640.6,2640.5,3.89107347]
[1724388197791,1.98770219,2640.6,2640.5,3.89107347]
[1724388207246,2.2563,2640.9,2640.5,3.89107347]
[1724388207420,1.98857416,2640.6,2640.5,3.89107347]
[1724388207943,2.38628899,2640.8,2640.5,3.89107347]
[1724388208559,1.98899394,2640.6,2640.5,3.89107347]
[1724388209064,2.38628899,2640.8,2640.5,3.89107347]
[1724388210564,2.38628899,2640.8,2640.6,3.78695]
[1724388210964,2.38628899,2640.8,2640.7,0.10390731]
[1724388212109,2.38764213,2640.8,2640.7,0.10390731]
[1724388212510,2.2563,2640.9,2640.7,0.10390731]
[1724388213143,2.38796642,2640.8,2640.7,0.10390731]
[1724388213455,2.2563,2640.9,2640.7,0.10390731]
[1724388214345,2.78622095,2641.0,2640.7,3.89077731]
[1724388214346,2.38818955,2640.8,2640.7,3.89077731]
[1724388214538,2.38818955,2640.9,2640.8,3.78673]
[1724388215023,2.38818955,2640.9,2640.8,5.01769199]
[1724388215547,2.38818955,2641.0,2640.8,5.01769199]
[1724388216835,2.38759626,2641.0,2640.8,5.01769199]
[1724388217533,2.38759626,2641.1,2641.0,3.78644]
[1724388217835,2.38759626,2641.1,2641.0,4.9135202]
[1724388218051,6.11045,2641.5,2641.0,4.9135202]
[1724388218052,2.38759626,2641.2,2641.1,7.5726]
[1724388218344,2.38759626,2641.4,2641.3,3.78601]
[1724388218546,2.38759626,2641.5,2641.4,3.78587]
[1724388219070,2.38759626,2641.5,2641.4,3.88956731]
[1724388219409,2.38759626,2641.6,2641.4,3.88956731]
[1724388221750,2.38759626,2641.7,2641.4,3.88956731]
[1724388222868,1.98566114,2641.5,2641.4,3.88956731]
[1724388223011,2.38759626,2641.7,2641.4,3.88956731]
[1724388223350,1.9856441,2641.5,2641.4,3.88956731]
[1724388223645,1.9856441,2641.5,2641.4,5.00730706]
[1724388226154,1.9856441,2641.5,2641.4,3.88956731]
[1724388227352,1.9856441,2641.6,2641.4,3.88956731]
[1724388227539,1.9856441,2641.6,2641.4,0.10369731]
[1724388228356,1.58703661,2641.5,2641.4,0.10369731]
[1724388229053,1.58704143,2641.5,2641.4,3.88956731]
[1724388233983,1.9856441,2641.7,2641.5,3.78572]
[1724388233984,1.58704143,2641.6,2641.5,3.78572]
[1724388234285,1.58704143,2641.6,2641.5,10.74866873]
[1724388234502,1.58704143,2641.7,2641.6,3.78558]
[1724388235001,1.58704143,2641.7,2641.6,3.88800878]
[1724388239464,1.58704143,2641.8,2641.6,3.88800878]
[1724388240167,1.58704143,2641.7,2641.6,3.88800878]
[1724388240610,1.98237497,2641.9,2641.7,3.78544]
[1724388240611,1.58704143,2641.8,2641.7,3.78544]
[1724388240912,1.58704143,2641.8,2641.7,3.88781816]
[1724388241280,1.5856234,2641.8,2641.7,3.88781816]
[1724388246884,1.9817587,2641.8,2641.7,3.88781816]
[1724388248028,1.9817587,2641.9,2641.7,3.88781816]
[1724388248256,4.4424587,2641.9,2641.7,0.10237816]
[1724388248394,1.9817587,2641.8,2641.7,0.10237816]
[1724388248794,4.44276743,2641.9,2641.7,0.10237816]
[1724388249189,1.98206743,2641.8,2641.7,0.10237816]
[1724388249519,6.13535,2641.8,2641.3,3.78601]
[1724388249813,6.13535,2641.8,2641.7,0.10215211]
[1724388250796,3.78535,2641.8,2641.3,3.78601]
[1724388250998,1.58603702,2641.5,2641.3,3.78601]
[1724388251902,1.58603702,2641.4,2641.3,3.78601]
[1724388252923,1.58603702,2641.5,2641.3,3.78601]
[1724388253370,1.58603702,2641.4,2641.3,3.78601]
[1724388253571,1.58603702,2641.5,2641.4,3.78587]
[1724388257353,1.9832664,2641.6,2641.4,3.78587]
[1724388258073,1.58786608,2641.5,2641.4,3.78587]
[1724388258285,2.35,2641.7,2641.4,3.78587]
[1724388258451,1.9848945,2641.6,2641.4,3.78587]
[1724388258655,1.9848945,2641.5,2641.4,3.78587]
[1724388260265,4.7318734,2641.7,2641.4,3.78587]
[1724388260585,1.98663869,2641.5,2641.4,3.78587]
[1724388260816,1.98663869,2641.5,2641.4,4.65576402]
[1724388261384,4.7318734,2641.7,2641.4,4.65576402]
[1724388261589,4.7318734,2641.7,2641.4,3.78587]
[1724388262489,2.3818734,2641.6,2641.4,3.78587]
[1724388262659,4.7318734,2641.7,2641.4,3.78587]
[1724388263066,2.3818734,2641.6,2641.4,3.78587]
[1724388263274,2.38525503,2641.6,2641.4,3.78587]
[1724388265292,2.38525503,2641.6,2641.5,0.10222197]
[1724388267304,2.38525503,2641.6,2641.5,3.88794197]
[1724388267889,2.3863007,2641.6,2641.5,3.88794197]
[1724388269575,2.78401748,2641.8,2641.5,3.88794197]
[1724388269775,2.386426,2641.6,2641.5,3.88794197]
[1724388270411,2.78401748,2641.7,2641.5,0.10222197]
[1724388270609,3.39813548,2641.8,2641.5,0.10222197]
[1724388271325,2.78401748,2641.7,2641.5,0.10222197]
[1724388274968,2.78401748,2641.8,2641.5,0.10222197]
[1724388275609,2.78401748,2641.7,2641.5,0.10222197]
[1724388277324,2.78401748,2641.8,2641.5,0.10222197]
[1724388277526,7.2683302,2641.9,2641.5,0.10222197]
[1724388277527,11.0535602,2641.9,2641.5,0.10222197]
[1724388277843,2.78410153,2641.7,2641.5,0.10222197]
[1724388281423,2.78410153,2641.8,2641.5,0.10222197]
[1724388281623,2.78410153,2641.7,2641.5,0.10222197]
[1724388282380,2.78403033,2641.7,2641.5,0.10222197]
[1724388282879,2.78403033,2641.8,2641.5,0.10222197]
[1724388283081,2.78403033,2641.7,2641.5,0.10222197]
[1724388283833,2.78403033,2641.8,2641.5,0.10222197]
[1724388284033,2.78403033,2641.7,2641.5,0.10222197]
[1724388285130,2.78403033,2641.8,2641.5,0.10222197]
[1724388285583,2.78403033,2641.7,2641.5,0.10222197]
[1724388287146,2.78410103,2641.7,2641.5,0.10222197]
[1724388291227,6.56968103,2641.6,2641.5,0.10222197]
[1724388291756,3.78603,2641.3,2640.8,6.1417]
[1724388292048,2.38736328,2641.1,2640.8,6.14166]
[1724388292341,2.38736328,2641.1,2640.8,7.134479]
[1724388292507,2.38736328,2641.1,2640.9,3.78657]
[1724388292952,1.98873297,2641.0,2640.9,7.57315]
[1724388293240,1.98873297,2641.0,2640.9,9.92815]
[1724388295202,1.98873297,2641.0,2640.9,10.02706891]
[1724388295419,1.98873297,2641.0,2640.9,11.62045572]
[1724388296752,2.38583241,2641.3,2641.1,3.78628]
[1724388297061,2.38583241,2641.3,2641.2,0.09908103]
[1724388305083,10.35501115,2641.5,2641.2,0.09908103]
[1724388305385,2.3851374,2641.3,2641.0,3.78643]
[1724388305591,2.38503182,2641.2,2641.0,4.8785069]
[1724388306492,2.38503182,2641.3,2641.0,4.8785069]
[1724388307334,1.98742299,2641.1,2641.0,4.8785069]
[1724388307545,1.98733316,2641.1,2641.0,4.8785069]
[1724388308357,2.38503182,2641.3,2641.0,4.8785069]
[1724388308557,1.98735392,2641.1,2641.0,4.8785069]
[1724388309501,2.38503182,2641.3,2641.0,4.8785069]
[1724388309708,2.38485444,2641.3,2641.0,4.8785069]
[1724388310272,2.38485444,2641.3,2641.1,0.09939543]
[1724388311186,2.38485444,2641.2,2641.1,0.09939543]
[1724388311518,6.56807018,2641.5,2641.1,0.09939543]
[1724388311519,2.38485444,2641.3,2641.1,0.09939543]
[1724388312189,2.38485444,2641.2,2641.1,0.09939543]
[1724388312396,2.38485444,2641.3,2640.9,6.14148]
[1724388312719,1.98737958,2641.0,2640.9,3.78648]
[1724388312906,1.98737958,2641.0,2640.8,3.78671]
[1724388313084,1.98737958,2641.0,2640.8,5.63353602]
[1724388313669,1.98737958,2641.0,2640.9,3.78658]
[1724388314198,2.38485444,2641.2,2640.9,3.78658]
[1724388314399,1.98745148,2641.0,2640.9,3.78658]
[1724388314636,1.9873925,2641.0,2640.9,3.78658]
[1724388314794,1.9873925,2641.0,2640.9,5.08207562]
[1724388315582,1.9873925,2641.0,2640.9,12.41073582]
[1724388317002,1.9873925,2641.1,2641.0,9.98788]
[1724388318161,2.38494178,2641.3,2641.1,3.78619]
[1724388319205,2.38499237,2641.3,2641.1,3.78619]
[1724388319405,2.38499237,2641.3,2641.1,5.02721058]
[1724388321433,2.38499237,2641.2,2641.0,3.78644]
[1724388323935,2.38523476,2641.2,2641.0,3.78644]
[1724388325278,2.38523476,2641.2,2641.1,0.09942055]
[1724388325922,2.38523476,2641.2,2640.9,3.78654]
[1724388326130,2.38523476,2641.2,2641.1,0.09796322]
[1724388326331,2.38523476,2641.2,2641.0,0.09797617]
[1724388326573,2.38523476,2641.2,2641.1,0.09796322]
[1724388326970,2.38523476,2641.2,2640.9,3.78657]
[1724388327136,2.38523476,2641.2,2641.1,0.09796322]
[1724388327339,2.38523476,2641.2,2641.0,0.09797617]
[1724388327636,2.38523476,2641.2,2641.1,0.09796322]
[1724388328170,2.38523476,2641.2,2640.9,3.78657]
[1724388328383,2.38523476,2641.2,2641.1,0.09796322]
[1724388328541,2.38563576,2641.2,2641.0,0.09797617]
[1724388328880,2.38563576,2641.2,2641.1,0.09796322]
[1724388329441,2.38563576,2641.2,2640.9,3.78657]
[1724388329639,2.38563576,2641.2,2641.1,0.09796322]
[1724388329861,2.38563576,2641.2,2641.0,0.09797617]
[1724388330092,2.38563576,2641.2,2641.1,0.09796322]
[1724388330451,2.38563576,2641.2,2640.9,3.78657]
[1724388331177,2.38563576,2641.1,2640.9,3.78657]
[1724388332374,2.38563576,2641.1,2640.9,8.330411]
[1724388332538,2.38563576,2641.2,2640.9,4.543841]
[1724388333042,2.38563576,2641.1,2640.9,4.543841]
[1724388333244,2.38667713,2641.1,2640.9,3.7865]
[1724388334398,2.38695,2641.1,2640.9,3.7865]
[1724388334696,2.38695,2641.0,2640.7,3.78677]
[1724388334902,2.38695,2641.0,2640.6,6.12186]
[1724388334903,2.38695,2640.9,2640.6,6.12186]
[1724388335065,2.38695,2640.8,2640.6,3.78696]
[1724388335244,2.38695,2640.8,2640.6,4.794276]